fUSD/lending_fUSD_20250504
["ID","MTS","AMOUNT","RATE_DAILY","PERIOD"]
[359790677,1746349967028,-460.8565705,0.00019983,2]
[359790678,1746349967053,-151.0,0.00019983,2]
[359790679,1746349967078,-151.0,0.00019983,2]
[359790680,1746349967103,-151.0,0.00019983,2]
[359790681,1746349967131,-503.49168931,0.00019983,2]
[359790682,1746349967157,-450.0,0.00019983,2]
[359790683,1746349967181,-450.0,0.00019983,2]
[359790684,1746349967204,-455.91609395,0.00019983,2]
[359790685,1746349967227,-464.19406914,0.00019983,2]
[359790686,1746349967249,-500.0,0.00019983,2]
[359790687,1746349967272,-500.0,0.00019983,2]
[359790688,1746349967295,-500.0,0.00019983,2]
[359790689,1746349967319,-500.0,0.00019983,2]
[359790690,1746349967342,-502.09772206,0.00019983,2]
[359790691,1746349967366,-458.29053416,0.00019983,2]
[359790692,1746349967395,-1609.8,0.00019983,2]
[359790693,1746349967418,-450.0,0.00019983,2]
[359790694,1746349967442,-818.351003,0.00019983,2]
[359790695,1746349967466,-462.41550184,0.00019983,2]
[359790696,1746349967490,-818.351003,0.00019983,2]
[359790697,1746349967512,-818.351003,0.00019983,2]
[359790698,1746349967534,-151.0,0.00019983,2]
[359790699,1746349967558,-151.0,0.00019983,2]
[359790700,1746349967581,-151.0,0.00019983,2]
[359790701,1746349967603,-818.351003,0.00019983,2]
[359790702,1746349967625,-818.351003,0.00019983,2]
[359790703,1746349967648,-818.351003,0.00019983,2]
[359790704,1746349967670,-450.0,0.00019983,2]
[359790705,1746349967692,-726.11,0.00019983,2]
[359790706,1746349967715,-450.0,0.00019983,2]
[359790707,1746349967738,-450.0,0.00019983,2]
[359790708,1746349967764,-450.0,0.00019983,2]
[359790709,1746349967786,-1403.95,0.00019983,2]
[359790710,1746349967809,-461.82247763,0.00019983,2]
[359790711,1746349967832,-818.351003,0.00019984,2]
[359790712,1746349967854,-151.0,0.00019984,2]
[359790713,1746349967876,-818.350996,0.00019984,2]
[359790714,1746349967898,-452.80506933,0.00019985,2]
[359790715,1746349967920,-461.72974066,0.00019985,2]
[359790716,1746349967941,-516.37988381,0.00019985,2]
[359790717,1746349967964,-450.0,0.00019985,2]
[359790718,1746349967988,-450.0,0.00019985,2]
[359790719,1746349968010,-471.57627606,0.00019985,2]
[359790720,1746349968033,-516.31923333,0.00019985,2]
[359790721,1746349968060,-454.18166578,0.00019985,2]
[359790722,1746349968084,-450.0,0.00019985,2]
[359790723,1746349968108,-507.4309453,0.00019985,2]
[359790724,1746349968132,-474.99,0.00019985,2]
[359790725,1746349968155,-453.7754506,0.00019985,2]
[359790726,1746349968178,-450.0,0.00019985,2]
[359790727,1746349968203,-450.0,0.00019985,2]
[359790728,1746349968226,-501.83481065,0.00019985,2]
[359790729,1746349968248,-451.57116598,0.00019985,2]
[359790730,1746349968271,-541.80432793,0.00019985,2]
[359790731,1746349968294,-452.46810661,0.00019985,2]
[359790732,1746349968318,-450.0,0.00019985,2]
[359790733,1746349968341,-450.0,0.00019985,2]
[359790734,1746349968363,-450.0,0.00019985,2]
[359790735,1746349968387,-327.38,0.00019985,2]
[359790736,1746349968412,-450.0,0.00019985,2]
[359790737,1746349968436,-450.0,0.00019985,2]
[359790738,1746349968460,-450.0,0.00019985,2]
[359790739,1746349968487,-450.92603816,0.00019985,2]
[359790740,1746349968606,-452.54189927,0.00019985,2]
[359790741,1746349968628,-450.0,0.00019985,2]
[359790742,1746349968649,-451.04619364,0.00019985,2]
[359790743,1746349968670,-450.0,0.00019985,2]
[359790744,1746349968690,-450.0,0.00019985,2]
[359790745,1746349968712,-450.0,0.00019985,2]
[359790746,1746349968734,-450.0,0.00019985,2]
[359790747,1746349968757,-4453.13,0.00019985,2]
[359790748,1746349968778,-451.08966396,0.00019985,2]
[359790749,1746349968799,-450.0,0.00019985,2]
[359790750,1746349968821,-451.42572893,0.00019985,2]
[359790751,1746349968842,-850.0,0.00019999,2]
[359790752,1746349968865,-60708.98901,0.0002,2]
[359790753,1746349968888,-499341.37597715,0.0002,2]
[359790754,1746350007754,-6554.355924,0.00019572,2]
[359790755,1746350007776,-1138.29377614,0.000196,2]
[359790756,1746350007797,-1026.65481431,0.000196,2]
[359790757,1746350007819,-6554.355924,0.00019762,2]
[359790758,1746350007840,-6554.355924,0.00019772,2]
[359790759,1746350007862,-6554.355924,0.00019789,2]
[359790760,1746350007884,-6554.355924,0.0001979,2]
[359790761,1746350007906,-6554.355924,0.00019792,2]
[359790762,1746350007927,-157.3102982,0.00019799,2]
[359790763,1746350007949,-1000.0,0.00019809,2]
[359790764,1746350007971,-72456.99802757,0.0001981,2]
[359790765,1746350007992,-2000.0,0.0001984,2]
[359790766,1746350008018,-2539.89300892,0.00019844,2]
[359790767,1746350008041,-2539.89300883,0.0001985,2]
[359790768,1746350008065,-2539.89300883,0.00019856,2]
[359790769,1746350008087,-2539.89300883,0.00019863,2]
[359790770,1746350008110,-2539.89300883,0.00019869,2]
[359790771,1746350008132,-2539.89300883,0.00019875,2]
[359790772,1746350008154,-300.0,0.0001988,2]
[359790773,1746350008176,-450.0,0.00019881,2]
[359790774,1746350008198,-515.54853591,0.00019881,2]
[359790775,1746350008219,-450.0,0.00019881,2]
[359790776,1746350008241,-450.0,0.00019881,2]
[359790777,1746350008264,-450.0,0.00019881,2]
[359790778,1746350008285,-450.0,0.00019881,2]
[359790779,1746350008308,-450.0,0.00019881,2]
[359790780,1746350008329,-450.0,0.00019881,2]
[359790781,1746350008350,-450.0,0.00019881,2]
[359790782,1746350008371,-457.63296035,0.00019881,2]
[359790783,1746350008394,-2539.89300883,0.00019881,2]
[359790784,1746350008420,-9323.64,0.00019883,2]
[359790785,1746350008442,-3928.9749,0.00019886,2]
[359790786,1746350008469,-450.0,0.00019887,2]
[359790787,1746350008492,-450.0,0.00019887,2]
[359790788,1746350008515,-450.0,0.00019887,2]
[359790789,1746350008538,-450.0,0.00019887,2]
[359790790,1746350008562,-450.0,0.00019887,2]
[359790791,1746350008585,-514.58,0.00019887,2]
[359790792,1746350008610,-3356.19,0.00019887,2]
[359790793,1746350008633,-450.0,0.00019887,2]
[359790794,1746350008656,-450.0,0.00019887,2]
[359790795,1746350008679,-450.0,0.00019887,2]
[359790796,1746350008701,-450.0,0.00019894,2]
[359790797,1746350008726,-450.0,0.00019894,2]
[359790798,1746350008748,-469.5541486,0.00019894,2]
[359790799,1746350008770,-587.49,0.00019894,2]
[359790800,1746350008794,-563.67185671,0.00019894,2]
[359790801,1746350008816,-466.025579,0.00019894,2]
[359790802,1746350008840,-530.48331828,0.00019894,2]
[359790803,1746350008863,-458.30486148,0.00019894,2]
[359790804,1746350008886,-453.88756249,0.00019894,2]
[359790805,1746350008908,-461.52968433,0.00019894,2]
[359790806,1746350008930,-450.0,0.00019894,2]
[359790807,1746350008952,-454.57061802,0.00019894,2]
[359790808,1746350008978,-457.12551117,0.00019894,2]
[359790809,1746350009000,-482.47655724,0.00019894,2]
[359790810,1746350009022,-274.81802997,0.00019894,2]
[359790811,1746350009045,-593.60262284,0.00019894,2]
[359790812,1746350009068,-468.91223706,0.00019894,2]
[359790813,1746350009090,-514.48201338,0.00019894,2]
[359790814,1746350009113,-452.20438635,0.00019894,2]
[359790815,1746350009135,-460.70256392,0.00019894,2]
[359790816,1746350009158,-454.56804679,0.00019894,2]
[359790817,1746350009180,-450.0,0.00019894,2]
[359790818,1746350009203,-452.14956321,0.00019894,2]
[359790819,1746350009225,-452.77360044,0.00019894,2]
[359790820,1746350009247,-461.35617369,0.00019894,2]
[359790821,1746350009269,-2500.0,0.000199,2]
[359790822,1746350009291,-183.1945,0.000199,2]
[359790823,1746350009314,-6554.355924,0.000199,2]
[359790824,1746350009336,-500.0,0.00019973,2]
[359790825,1746350009360,-500.0,0.00019973,2]
[359790826,1746350009382,-458.08302021,0.00019983,2]
[359790827,1746350009406,-462.353672,0.00019983,2]
[359790828,1746350009429,-473.32802568,0.00019983,2]
[359790829,1746350009452,-461.23583592,0.00019983,2]
[359790830,1746350009474,-257.41000253,0.00019983,2]
[359790831,1746350009498,-450.0,0.00019983,2]
[359790832,1746350009520,-458.93828106,0.00019983,2]
[359790833,1746350009542,-457.08814899,0.00019983,2]
[359790834,1746350009564,-477.05331116,0.00019983,2]
[359790835,1746350009588,-472.3541391,0.00019983,2]
[359790836,1746350009625,-464.79219225,0.00019983,2]
[359790837,1746350009649,-524.9431946,0.00019983,2]
[359790838,1746350009673,-466.60691417,0.00019983,2]
[359790839,1746350009696,-455.07225871,0.00019983,2]
[359790840,1746350009719,-450.82569979,0.00019985,2]
[359790841,1746350009742,-451.26755324,0.00019985,2]
[359790842,1746350009768,-450.0,0.00019985,2]
[359790843,1746350009791,-452.86277759,0.00019985,2]
[359790844,1746350009815,-467.45820844,0.00019985,2]
[359790845,1746350009837,-450.0,0.00019985,2]
[359790846,1746350009861,-231.67,0.00019985,2]
[359790847,1746350010188,-450.54443669,0.00019985,2]
[359790848,1746350010213,-450.0,0.00019985,2]
[359790849,1746350010237,-255.45560605,0.00019985,2]
[359790850,1746350010260,-1257.04,0.00019985,2]
[359790851,1746350010287,-592.19,0.00019985,2]
[359790852,1746350010310,-450.0,0.00019985,2]
[359790853,1746350010334,-533.99,0.00019985,2]
[359790854,1746350010359,-450.0,0.00019985,2]
[359790855,1746350010382,-450.0,0.00019985,2]
[359790856,1746350010408,-463.0,0.00019985,2]
[359790857,1746350010431,-54411.1529056,0.00019986,2]
[359790858,1746350010455,-462.02997911,0.00019999,2]
[359790859,1746350010477,-463.90501597,0.00019999,2]
[359790860,1746350010501,-453.23725052,0.00019999,2]
[359790861,1746350010525,-214.13777009,0.0002,2]
[359790862,1746350010549,-574984.52452318,0.0002,2]
[359790863,1746350033963,606.32,0.00017244,2]
[359790864,1746350034750,-250.0,0.00019508,2]
[359790865,1746350040990,-200.21179641,0.00019508,2]
[359790866,1746350047575,-156.10820359,0.00019508,2]
[359790867,1746350062383,-250.0,0.00019554,2]
[359790868,1746350062408,-1062.44311673,0.000196,2]
[359790869,1746350062431,-465.27444251,0.00019881,2]
[359790870,1746350062453,-461.53117526,0.00019881,2]
[359790871,1746350062475,-450.0,0.00019881,2]
[359790872,1746350062496,-455.0611156,0.00019881,2]
[359790873,1746350062520,-450.0,0.00019881,2]
[359790874,1746350062541,-450.0,0.00019881,2]
[359790875,1746350062563,-450.0,0.00019881,2]
[359790876,1746350062584,-522.49919622,0.00019881,2]
[359790877,1746350062607,-450.0,0.00019881,2]
[359790878,1746350062628,-475.54842737,0.00019881,2]
[359790879,1746350062651,-450.0,0.00019881,2]
[359790880,1746350062674,-450.0,0.00019881,2]
[359790881,1746350062696,-450.0,0.00019881,2]
[359790882,1746350062719,-450.0,0.00019887,2]
[359790883,1746350062742,-450.0,0.00019887,2]
[359790884,1746350062764,-584.32,0.00019887,2]
[359790885,1746350062786,-450.0,0.00019887,2]
[359790886,1746350062808,-1156.28,0.00019887,2]
[359790887,1746350062830,-1457.22,0.00019887,2]
[359790888,1746350062851,-450.0,0.00019887,2]
[359790889,1746350062873,-450.0,0.00019887,2]
[359790890,1746350062895,-614.54,0.00019887,2]
[359790891,1746350062919,-540.07192061,0.00019887,2]
[359790892,1746350062941,-669.56,0.00019887,2]
[359790893,1746350062968,-450.0,0.00019887,2]
[359790894,1746350062991,-869.71,0.00019887,2]
[359790895,1746350063014,-3371.12,0.00019887,2]
[359790896,1746350063037,-2539.89300883,0.00019888,2]
[359790897,1746350063060,-2539.89300883,0.00019894,2]
[359790898,1746350063083,-459.70486477,0.00019894,2]
[359790899,1746350063105,-454.67865262,0.00019894,2]
[359790900,1746350063128,-456.11379525,0.00019894,2]
[359790901,1746350063152,-450.0,0.00019894,2]
[359790902,1746350063175,-508.7434677,0.00019894,2]
[359790903,1746350063198,-453.35915404,0.00019894,2]
[359790904,1746350063221,-450.0,0.00019894,2]
[359790905,1746350063245,-1662.34,0.00019894,2]
[359790906,1746350063266,-502.89792827,0.00019894,2]
[359790907,1746350063288,-451.55029221,0.00019894,2]
[359790908,1746350063310,-461.66168101,0.00019894,2]
[359790909,1746350063332,-466.20876886,0.00019894,2]
[359790910,1746350063354,-463.67267312,0.00019894,2]
[359790911,1746350063376,-458.22120588,0.00019894,2]
[359790912,1746350063398,-450.93532248,0.00019894,2]
[359790913,1746350063422,-452.45543836,0.00019894,2]
[359790914,1746350063445,-450.0,0.00019894,2]
[359790915,1746350063468,-454.21681599,0.00019894,2]
[359790916,1746350063490,-466.82107001,0.00019894,2]
[359790917,1746350063515,-450.0,0.00019894,2]
[359790918,1746350063536,-450.0,0.00019894,2]
[359790919,1746350063559,-465.16253598,0.00019894,2]
[359790920,1746350063581,-450.0,0.00019894,2]
[359790921,1746350063604,-839.2,0.00019894,2]
[359790922,1746350063626,-536.91998692,0.00019894,2]
[359790923,1746350063649,-518.48809956,0.00019894,2]
[359790924,1746350063671,-467.08895116,0.00019894,2]
[359790925,1746350063693,-451.09638104,0.00019894,2]
[359790926,1746350063714,-451.02382333,0.00019894,2]
[359790927,1746350063736,-456.8803381,0.00019894,2]
[359790928,1746350063759,-496.09974271,0.00019894,2]
[359790929,1746350063780,-467.78995365,0.00019894,2]
[359790930,1746350063802,-460.55438561,0.00019894,2]
[359790931,1746350063824,-721.88,0.00019894,2]
[359790932,1746350063846,-15738.4591,0.000199,2]
[359790933,1746350063868,-9639.81015941,0.000199,2]
[359790934,1746350071888,-207.4,0.00019502,2]
[359790935,1746350076088,-150.0,0.00019502,2]
[359790936,1746350079349,-317.31576223,0.00019502,2]
[359790937,1746350083613,-329.97868245,0.00019502,2]
[359790938,1746350091755,-582.40340813,0.00019502,2]
[359790939,1746350091778,-243.660831,0.00019852,2]
[359790940,1746350091802,-243.660831,0.00019852,2]
[359790941,1746350091824,-156.994073,0.00019852,2]
[359790942,1746350091846,-243.660831,0.00019864,2]
[359790943,1746350091868,-243.660831,0.00019864,2]
[359790944,1746350091889,-243.660831,0.00019865,2]
[359790945,1746350091911,-243.660831,0.00019865,2]
[359790946,1746350091933,-243.660831,0.00019874,2]
[359790947,1746350091954,-243.660831,0.00019874,2]
[359790948,1746350091977,-450.0,0.00019881,2]
[359790949,1746350092004,-511.77386831,0.00019881,2]
[359790950,1746350092028,-243.660831,0.00019882,2]
[359790951,1746350092050,-243.660831,0.00019882,2]
[359790952,1746350092075,-243.660831,0.00019884,2]
[359790953,1746350092098,-243.660831,0.00019884,2]
[359790954,1746350092120,-1071.49686378,0.00019887,2]
[359790955,1746350092142,-172.35013041,0.00019887,2]
[359790956,1746350092164,-503.15,0.00019887,2]
[359790957,1746350092188,-3551.39,0.00019887,2]
[359790958,1746350092211,-2531.04,0.00019887,2]
[359790959,1746350092235,-450.0,0.00019887,2]
[359790960,1746350092258,-243.660831,0.00019888,2]
[359790961,1746350092280,-243.660831,0.00019888,2]
[359790962,1746350092306,-243.660831,0.0001989,2]
[359790963,1746350092329,-243.660831,0.0001989,2]
[359790964,1746350092352,-243.660831,0.00019893,2]
[359790965,1746350092375,-243.660831,0.00019893,2]
[359790966,1746350092400,-465.35533004,0.00019894,2]
[359790967,1746350092422,-524.35942254,0.00019894,2]
[359790968,1746350092450,-449.93949605,0.00019894,2]
[359790969,1746350092473,-467.98352338,0.00019894,2]
[359790970,1746350092494,-517.41553409,0.00019894,2]
[359790971,1746350092518,-459.03964489,0.00019894,2]
[359790972,1746350092540,-557.35472391,0.00019894,2]
[359790973,1746350092563,-463.13278092,0.00019894,2]
[359790974,1746350092586,-461.10912373,0.00019894,2]
[359790975,1746350092609,-243.660831,0.00019896,2]
[359790976,1746350092635,-243.660838,0.00019896,2]
[359790977,1746350092657,-20216.29624059,0.000199,2]
[359790978,1746350092682,-2539.89300883,0.000199,2]
[359790979,1746350092706,-10163.9473586,0.000199,2]
[359790980,1746350092729,-1091.7781,0.000199,2]
[359790981,1746350092754,-1000.0,0.000199,2]
[359790982,1746350092776,-2399.84797197,0.000199,2]
[359790983,1746350092798,-4644.40645658,0.000199,2]
[359790984,1746350092820,-259.3011674,0.000199,2]
[359790985,1746350092844,-167.61351507,0.00019973,2]
[359790986,1746350092867,-500.0,0.00019973,2]
[359790987,1746350092888,-500.0,0.00019973,2]
[359790988,1746350092911,-468.44883203,0.00019983,2]
[359790989,1746350092933,-5074.30840831,0.00019983,2]
[359790990,1746350092956,-458.57222766,0.00019983,2]
[359790991,1746350092978,-450.0,0.00019983,2]
[359790992,1746350093000,-477.78927178,0.00019983,2]
[359790993,1746350093023,-459.0907838,0.00019983,2]
[359790994,1746350093046,-461.6675902,0.00019983,2]
[359790995,1746350093070,-462.65077611,0.00019983,2]
[359790996,1746350093093,-457.10779033,0.00019983,2]
[359790997,1746350093116,-464.39063344,0.00019983,2]
[359790998,1746350093149,-456.34810991,0.00019983,2]
[359790999,1746350093172,-450.0,0.00019983,2]
[359791000,1746350093196,-454.60861484,0.00019983,2]
[359791001,1746350093219,-464.25844321,0.00019983,2]
[359791002,1746350093242,-540.15926512,0.00019983,2]
[359791003,1746350093265,-457.6213522,0.00019983,2]
[359791004,1746350093288,-459.13062492,0.00019983,2]
[359791005,1746350093310,-482.1082104,0.00019983,2]
[359791006,1746350093618,-481.74623044,0.00019983,2]
[359791007,1746350093642,-477.99814962,0.00019983,2]
[359791008,1746350093664,-492.13,0.00019985,2]
[359791009,1746350093688,-562.93,0.00019985,2]
[359791010,1746350093712,-450.0,0.00019985,2]
[359791011,1746350093736,-3472.6,0.00019985,2]
[359791012,1746350093759,-521.6,0.00019985,2]
[359791013,1746350093783,-450.0,0.00019985,2]
[359791014,1746350093805,-450.0,0.00019985,2]
[359791015,1746350093828,-450.0,0.00019985,2]
[359791016,1746350093852,-450.0,0.00019985,2]
[359791017,1746350093874,-466.76971206,0.00019985,2]
[359791018,1746350093896,-867.29,0.00019985,2]
[359791019,1746350093919,-450.0,0.00019985,2]
[359791020,1746350093942,-450.0,0.00019985,2]
[359791021,1746350093966,-450.0,0.00019985,2]
[359791022,1746350093991,-450.0,0.00019985,2]
[359791023,1746350094014,-1213.7423994,0.00019986,2]
[359791024,1746350094037,-500.0,0.00019999,2]
[359791025,1746350094061,-450.0,0.00019999,2]
[359791026,1746350094083,-450.0,0.00019999,2]
[359791027,1746350094114,-475.73610853,0.00019999,2]
[359791028,1746350094136,-472.50567715,0.00019999,2]
[359791029,1746350094160,-450.0,0.00019999,2]
[359791030,1746350094182,-459.8810777,0.00019999,2]
[359791031,1746350094205,-440.0,0.00019999,2]
[359791032,1746350094230,-308041.22134162,0.0002,2]
[359791033,1746350243279,2991.65051684,0.00018998,2]
[359791041,1746350309726,-300.0,0.00019725,2]
[359791042,1746350309750,-550.0,0.00019725,2]
[359791043,1746350309775,-529.24535682,0.00019726,2]
[359791044,1746350309801,-450.0,0.00019726,2]
[359791045,1746350309826,-450.0,0.00019726,2]
[359791046,1746350309850,-255.01362017,0.00019726,2]
[359791047,1746350309875,-488.82129883,0.00019726,2]
[359791048,1746350309899,-450.0,0.00019726,2]
[359791049,1746350309924,-1526.91972418,0.00019726,2]
[359791051,1746350427758,182.18,0.00018873,2]
[359791052,1746350718777,159.19,0.00019345,2]
[359791060,1746350767986,1761.72264482,8e-05,2]
[359791078,1746350829540,-270.0,0.00019526,2]
[359791081,1746350833418,-464.93806907,0.00019526,2]
[359791082,1746350843453,-86.76097347,0.00019526,2]
[359791089,1746350850984,1000.0,0.00018752,2]
[359791093,1746350883604,188.57,0.00018741,2]
[359791097,1746350963191,150.67,0.00018768,2]
[359791098,1746350971659,250.0,0.00017,2]
[359791099,1746350972730,300.0,0.00019,2]
[359791109,1746351031738,-821.69904255,0.00019556,2]
[359791110,1746351031748,-200.0,0.0001957,2]
[359791111,1746351031757,-250.0,0.00019583,2]
[359791112,1746351031768,-200.0,0.000196,2]
[359791113,1746351031777,-1426.52262697,0.0001961,2]
[359791114,1746351031787,-1200.0,0.00019625,2]
[359791115,1746351031796,-300.0,0.00019625,2]
[359791116,1746351031805,-607.04830191,0.00019626,2]
[359791117,1746351031814,-440.73044008,0.00019626,2]
[359791118,1746351031824,-308.93535099,0.00019626,2]
[359791119,1746351031833,-1590.8908,0.00019626,2]
[359791120,1746351031842,-733.98816054,0.00019626,2]
[359791121,1746351031852,-440.73044005,0.00019656,2]
[359791122,1746351031862,-308.93535096,0.00019656,2]
[359791123,1746351031871,-3661.49641574,0.0001968,2]
[359791124,1746351031880,-440.73044005,0.00019687,2]
[359791125,1746351031889,-308.93535096,0.00019687,2]
[359791126,1746351031899,-338.53820879,0.0001969,2]
[359791127,1746351031909,-4649.8319,0.00019708,2]
[359791128,1746351031918,-151.0,0.00019714,2]
[359791129,1746351031928,-207.4,0.00019714,2]
[359791130,1746351031937,-668.65185757,0.00019714,2]
[359791131,1746351031947,-164.11,0.00019716,2]
[359791132,1746351031956,-164.11,0.00019716,2]
[359791133,1746351031965,-164.11,0.00019716,2]
[359791134,1746351031974,-164.11,0.00019716,2]
[359791135,1746351031985,-164.11,0.00019716,2]
[359791136,1746351031995,-164.11,0.00019716,2]
[359791137,1746351032004,-1168.22,0.00019716,2]
[359791138,1746351032013,-440.73044005,0.00019717,2]
[359791139,1746351032023,-308.93535096,0.00019717,2]
[359791140,1746351032032,-152.80401757,0.00019725,2]
[359791141,1746351032041,-480.82,0.00019726,2]
[359791142,1746351032051,-454.90307283,0.00019726,2]
[359791143,1746351032060,-478.57796843,0.00019726,2]
[359791144,1746351032070,-495.42494486,0.00019726,2]
[359791146,1746351032079,-465.35527399,0.00019726,2]
[359791148,1746351032088,-486.93550115,0.00019726,2]
[359791150,1746351032098,-522.29934466,0.00019726,2]
[359791152,1746351032108,-490.232637,0.00019726,2]
[359791155,1746351032117,-474.47695917,0.00019726,2]
[359791158,1746351032129,-594.53940055,0.00019726,2]
[359791161,1746351032139,-496.78046728,0.00019726,2]
[359791163,1746351032148,-330.40765097,0.00019726,2]
[359791166,1746351032158,-478.1400401,0.00019726,2]
[359791168,1746351032168,-451.11989172,0.00019726,2]
[359791170,1746351032178,-458.36355577,0.00019726,2]
[359791172,1746351032187,-486.04095185,0.00019726,2]
[359791175,1746351032197,-474.90184557,0.00019726,2]
[359791178,1746351032212,-480.44474905,0.00019726,2]
[359791180,1746351032221,-513.84321578,0.00019726,2]
[359791182,1746351032231,-473.30709763,0.00019726,2]
[359791184,1746351032240,-494.06949929,0.00019726,2]
[359791186,1746351032250,-493.96073606,0.00019726,2]
[359791187,1746351032260,-478.70018162,0.00019726,2]
[359791188,1746351032270,-474.3212282,0.00019726,2]
[359791189,1746351032279,-464.94515085,0.00019726,2]
[359791190,1746351032288,-471.38361395,0.00019726,2]
[359791191,1746351032298,-450.0,0.00019726,2]
[359791192,1746351032310,-486.58631479,0.00019726,2]
[359791193,1746351032319,-488.45192156,0.00019726,2]
[359791194,1746351032329,-450.0,0.00019726,2]
[359791195,1746351032338,-503.58878925,0.00019726,2]
[359791197,1746351032347,-471.71313037,0.00019726,2]
[359791199,1746351032357,-454.09562415,0.00019726,2]
[359791201,1746351032366,-489.50292406,0.00019726,2]
[359791203,1746351032376,-462.92375013,0.00019726,2]
[359791205,1746351032385,-450.0,0.00019726,2]
[359791207,1746351032394,-471.54271815,0.00019726,2]
[359791209,1746351032403,-484.41615769,0.00019726,2]
[359791211,1746351032412,-452.85681492,0.00019726,2]
[359791213,1746351032422,-491.28999462,0.00019726,2]
[359791214,1746351032430,-490.30304219,0.00019726,2]
[359791215,1746351032441,-481.92909533,0.00019726,2]
[359791216,1746351032451,-560.75512862,0.00019726,2]
[359791217,1746351032461,-465.82663107,0.00019726,2]
[359791218,1746351032469,-594.16506235,0.00019726,2]
[359791219,1746351032478,-494.25203425,0.00019726,2]
[359791220,1746351032487,-555.29604386,0.00019726,2]
[359791221,1746351032496,-457.21247579,0.00019726,2]
[359791222,1746351032506,-461.89272203,0.00019726,2]
[359791223,1746351032516,-523.99353471,0.00019726,2]
[359791224,1746351032525,-467.67755255,0.00019726,2]
[359791225,1746351032534,-470.45394944,0.00019726,2]
[359791226,1746351032543,-463.91669263,0.00019726,2]
[359791227,1746351032552,-467.16249598,0.00019726,2]
[359791228,1746351032562,-450.0,0.00019726,2]
[359791229,1746351032571,-450.0,0.00019726,2]
[359791230,1746351032580,-496.05973536,0.00019726,2]
[359791231,1746351032589,-456.08519789,0.00019726,2]
[359791232,1746351032599,-456.24817166,0.00019726,2]
[359791233,1746351032608,-458.98046877,0.00019726,2]
[359791234,1746351032617,-462.0502252,0.00019726,2]
[359791235,1746351032626,-466.74235252,0.00019726,2]
[359791236,1746351032635,-595.28229359,0.00019726,2]
[359791237,1746351032644,-543.71412053,0.00019726,2]
[359791238,1746351032653,-460.94373476,0.00019726,2]
[359791239,1746351032662,-463.18659772,0.00019726,2]
[359791240,1746351032671,-464.29089272,0.00019726,2]
[359791241,1746351032680,-449.99965821,0.00019726,2]
[359791242,1746351032689,-488.67505714,0.00019726,2]
[359791243,1746351032698,-475.17163322,0.00019726,2]
[359791244,1746351032707,-476.0528322,0.00019726,2]
[359791245,1746351032716,-536.05695934,0.00019726,2]
[359791246,1746351032725,-475.21392959,0.00019726,2]
[359791247,1746351032734,-474.83307317,0.00019726,2]
[359791248,1746351032743,-482.93476155,0.00019726,2]
[359791249,1746351032752,-454.63519989,0.00019726,2]
[359791250,1746351032761,-463.57744304,0.00019726,2]
[359791251,1746351032770,-452.47057165,0.00019726,2]
[359791252,1746351032779,-464.64320158,0.00019726,2]
[359791253,1746351032788,-492.19580637,0.00019726,2]
[359791254,1746351032797,-506.91783336,0.00019726,2]
[359791255,1746351032806,-459.41899788,0.00019726,2]
[359791256,1746351032815,-468.24622506,0.00019726,2]
[359791257,1746351032824,-450.0,0.00019726,2]
[359791258,1746351032833,-465.59714976,0.00019726,2]
[359791259,1746351032843,-529.93554445,0.00019726,2]
[359791260,1746351032852,-527.78672137,0.00019726,2]
[359791261,1746351032861,-461.10258206,0.00019726,2]
[359791262,1746351032870,-481.1328804,0.00019726,2]
[359791263,1746351032879,-1020.57799463,0.00019726,2]
[359791264,1746351032888,-468.80176709,0.00019726,2]